[Event "Late-Titled-Tuesday-Blitz-September-05-2023"]
[Site "Chess.com"]
[Date "2023.09.05"]
[Round "4"]
[White "EstudiandoAjedrezRD"]
[Black "Quattroporte300"]
[Result "0-1"]
[WhiteElo "2204"]
[BlackElo "2391"]
[TimeControl "180+1"]
[EndTime "14:37:13 PDT"]
[Termination "Quattroporte300 won by resignation"]

1. d4 {[%clk 0:02:58.4]} 1... Nf6 {[%clk 0:02:59.3]} 2. c4 {[%clk 0:02:58.1]}
2... g6 {[%clk 0:02:59.8]} 3. Nf3 {[%clk 0:02:57.5]} 3... Bg7 {[%clk 0:03:00.1]}
4. g3 {[%clk 0:02:58.2]} 4... d6 {[%clk 0:02:59.9]} 5. Bg2 {[%clk 0:02:58.4]}
5... O-O {[%clk 0:03:00.4]} 6. O-O {[%clk 0:02:58.9]} 6... c6 {[%clk 0:02:56]}
7. Nc3 {[%clk 0:02:55.3]} 7... Bg4 {[%clk 0:02:54.4]} 8. h3 {[%clk 0:02:54.1]}
8... Bxf3 {[%clk 0:02:53.7]} 9. Bxf3 {[%clk 0:02:53.4]} 9... Nbd7 {[%clk
0:02:54.1]} 10. d5 {[%clk 0:02:51.3]} 10... c5 {[%clk 0:02:51.3]} 11. Bg2 {[%clk
0:02:46.8]} 11... Ne5 {[%clk 0:02:47.4]} 12. b3 {[%clk 0:02:46.9]} 12... Nfd7
{[%clk 0:02:47.8]} 13. Rb1 {[%clk 0:02:45.4]} 13... Nxc4 {[%clk 0:02:40.3]} 14.
bxc4 {[%clk 0:02:46.3]} 14... Bxc3 {[%clk 0:02:40]} 15. Rxb7 {[%clk 0:02:45.5]}
15... Nb6 {[%clk 0:02:38.9]} 16. Bg5 {[%clk 0:02:44.2]} 16... f6 {[%clk
0:02:35.7]} 17. Bh6 {[%clk 0:02:42.4]} 17... Rf7 {[%clk 0:02:35]} 18. Qb3 {[%clk
0:02:38.1]} 18... Ba5 {[%clk 0:02:12.6]} 19. Qb5 {[%clk 0:02:37.1]} 19... Qc8
{[%clk 0:02:07.5]} 20. Qa6 {[%clk 0:02:25.1]} 20... Nxc4 {[%clk 0:02:06.6]} 21.
Rfb1 {[%clk 0:02:18.2]} 21... Bb6 {[%clk 0:01:59.9]} 22. a4 {[%clk 0:02:06.6]}
22... Na5 {[%clk 0:01:56.7]} 23. Bd2 {[%clk 0:01:59.8]} 23... Qxb7 {[%clk
0:01:41]} 24. Qxb7 {[%clk 0:01:58.1]} 24... Nxb7 {[%clk 0:01:40.9]} 25. a5
{[%clk 0:01:58.1]} 25... Nxa5 {[%clk 0:01:41.3]} 26. Bxa5 {[%clk 0:01:57.7]}
26... Bxa5 {[%clk 0:01:41]} 27. Rb7 {[%clk 0:01:57.2]} 27... Bb6 {[%clk
0:01:40.9]} 28. h4 {[%clk 0:01:56.1]} 28... Rff8 {[%clk 0:01:37.4]} 29. Bh3
{[%clk 0:01:56.3]} 29... f5 {[%clk 0:01:28.7]} 30. Rxe7 {[%clk 0:01:55.9]} 30...
Rfe8 {[%clk 0:01:28.6]} 31. Rd7 {[%clk 0:01:54.7]} 31... Rad8 {[%clk 0:01:26.5]}
32. Rb7 {[%clk 0:01:53.3]} 32... Rxe2 {[%clk 0:01:26.4]} 33. Bf1 {[%clk
0:01:51.3]} 33... Rb2 {[%clk 0:01:24.7]} 34. Kg2 {[%clk 0:01:50.7]} 34... c4
{[%clk 0:01:18.8]} 35. Bxc4 {[%clk 0:01:50.3]} 35... Rxf2+ {[%clk 0:01:18.8]}
36. Kh3 {[%clk 0:01:50.1]} 36... Rf3 {[%clk 0:01:16]} 37. Kg2 {[%clk 0:01:49.2]}
37... Rc3 {[%clk 0:01:15]} 38. Bb5 {[%clk 0:01:49.3]} 38... Rc7 {[%clk
0:01:11.7]} 39. Rxc7 {[%clk 0:01:47]} 39... Bxc7 {[%clk 0:01:11.8]} 0-1

[Event "Late-Titled-Tuesday-Blitz-September-05-2023"]
[Site "Chess.com"]
[Date "2023.09.05"]
[Round "4"]
[White "The_Straightforward_Rook"]
[Black "Chemim21"]
[Result "1-0"]
[WhiteElo "2492"]
[BlackElo "2261"]
[TimeControl "180+1"]
[EndTime "14:37:16 PDT"]
[Termination "The_Straightforward_Rook won by resignation"]

1. d4 {[%clk 0:03:00.9]} 1... e6 {[%clk 0:03:00.9]} 2. c4 {[%clk 0:03:00.1]}
2... d5 {[%clk 0:03:01]} 3. Nf3 {[%clk 0:02:59.3]} 3... c6 {[%clk 0:03:01.2]} 4.
cxd5 {[%clk 0:02:59.2]} 4... exd5 {[%clk 0:03:00.8]} 5. Nc3 {[%clk 0:02:59.5]}
5... Bf5 {[%clk 0:02:59.8]} 6. Qb3 {[%clk 0:02:58.1]} 6... Qb6 {[%clk
0:02:58.9]} 7. Bf4 {[%clk 0:02:56.9]} 7... Qxb3 {[%clk 0:02:52.8]} 8. axb3
{[%clk 0:02:57.8]} 8... Nd7 {[%clk 0:02:52.4]} 9. e3 {[%clk 0:02:50.1]} 9...
Ngf6 {[%clk 0:02:51.5]} 10. h3 {[%clk 0:02:50.1]} 10... h6 {[%clk 0:02:51.2]}
11. Be2 {[%clk 0:02:48.4]} 11... Ne4 {[%clk 0:02:46.7]} 12. Nd2 {[%clk
0:02:43.9]} 12... Nxd2 {[%clk 0:02:39.7]} 13. Kxd2 {[%clk 0:02:43.4]} 13... Bb4
{[%clk 0:02:38.4]} 14. Ra4 {[%clk 0:02:41.7]} 14... a5 {[%clk 0:02:32.6]} 15.
Rha1 {[%clk 0:02:35.7]} 15... Ke7 {[%clk 0:02:25.3]} 16. g4 {[%clk 0:02:25.9]}
16... Bh7 {[%clk 0:02:18.8]} 17. Bd3 {[%clk 0:02:26.2]} 17... Bxd3 {[%clk
0:02:16]} 18. Kxd3 {[%clk 0:02:27.1]} 18... b5 {[%clk 0:02:13.3]} 19. R4a2
{[%clk 0:02:25.5]} 19... g5 {[%clk 0:02:07.6]} 20. Bc7 {[%clk 0:02:23.3]} 20...
h5 {[%clk 0:01:59.3]} 21. Bxa5 {[%clk 0:02:20.5]} 21... Bxc3 {[%clk 0:01:54.9]}
22. bxc3 {[%clk 0:02:13.6]} 22... hxg4 {[%clk 0:01:53.6]} 23. Bb4+ {[%clk
0:02:12.8]} 23... c5 {[%clk 0:01:45.7]} 24. Rxa8 {[%clk 0:02:03.6]} 24... Rxa8
{[%clk 0:01:44.6]} 25. Rxa8 {[%clk 0:02:01.7]} 25... cxb4 {[%clk 0:01:44.1]} 26.
hxg4 {[%clk 0:02:01.4]} 26... f5 {[%clk 0:01:34.7]} 27. gxf5 {[%clk 0:01:58]}
27... Kf6 {[%clk 0:01:34.6]} 28. Rd8 {[%clk 0:01:45.8]} 28... Ke7 {[%clk
0:01:28.6]} 29. Rxd7+ {[%clk 0:01:45.7]} 29... Kxd7 {[%clk 0:01:28.8]} 30. cxb4
{[%clk 0:01:45.8]} 30... Ke7 {[%clk 0:01:28.2]} 31. e4 {[%clk 0:01:46.1]} 31...
Kf6 {[%clk 0:01:22.8]} 32. f3 {[%clk 0:01:38.6]} 32... dxe4+ {[%clk 0:01:20.3]}
33. fxe4 {[%clk 0:01:38.7]} 33... g4 {[%clk 0:01:20]} 34. Ke3 {[%clk 0:01:38]}
34... Kg5 {[%clk 0:01:19.6]} 35. Kf2 {[%clk 0:01:37.3]} 35... Kf4 {[%clk
0:01:19.4]} 36. f6 {[%clk 0:01:37]} 36... g3+ {[%clk 0:01:19.9]} 37. Kg2 {[%clk
0:01:37.3]} 37... Kxe4 {[%clk 0:01:20.2]} 38. f7 {[%clk 0:01:37.8]} 38... Kxd4
{[%clk 0:01:21.1]} 39. f8=Q {[%clk 0:01:38.1]} 39... Kc3 {[%clk 0:01:22]} 40.
Qc5+ {[%clk 0:01:37.2]} 40... Kxb3 {[%clk 0:01:22.9]} 41. Qxb5 {[%clk
0:01:37.4]} 1-0

[Event "Late-Titled-Tuesday-Blitz-September-05-2023"]
[Site "Chess.com"]
[Date "2023.09.05"]
[Round "4"]
[White "thechessnoob12345"]
[Black "venturov"]
[Result "0-1"]
[WhiteElo "2097"]
[BlackElo "2434"]
[TimeControl "180+1"]
[EndTime "14:37:24 PDT"]
[Termination "venturov won by resignation"]

1. d4 {[%clk 0:03:00.9]} 1... g6 {[%clk 0:02:54.6]} 2. c4 {[%clk 0:02:59.5]}
2... Bg7 {[%clk 0:02:55.1]} 3. Nc3 {[%clk 0:03:00]} 3... c5 {[%clk 0:02:54.7]}
4. d5 {[%clk 0:02:59.7]} 4... Bxc3+ {[%clk 0:02:53.5]} 5. bxc3 {[%clk
0:03:00.6]} 5... f5 {[%clk 0:02:52.9]} 6. Nf3 {[%clk 0:02:53.3]} 6... Nf6 {[%clk
0:02:47.6]} 7. e3 {[%clk 0:02:52.8]} 7... Qa5 {[%clk 0:02:44.5]} 8. Qc2 {[%clk
0:02:50.6]} 8... d6 {[%clk 0:02:43.3]} 9. Bd3 {[%clk 0:02:50.5]} 9... Nbd7
{[%clk 0:02:42.2]} 10. O-O {[%clk 0:02:50]} 10... Ne5 {[%clk 0:02:42.6]} 11.
Nxe5 {[%clk 0:02:46.8]} 11... dxe5 {[%clk 0:02:43.5]} 12. f3 {[%clk 0:02:41.7]}
12... Bd7 {[%clk 0:02:41.1]} 13. e4 {[%clk 0:02:40]} 13... f4 {[%clk 0:02:41.1]}
14. g3 {[%clk 0:02:32.3]} 14... g5 {[%clk 0:02:41]} 15. Bd2 {[%clk 0:02:26.5]}
15... h5 {[%clk 0:02:40.1]} 16. gxf4 {[%clk 0:02:21.4]} 16... gxf4 {[%clk
0:02:37.9]} 17. Kh1 {[%clk 0:02:21.6]} 17... O-O-O {[%clk 0:02:37.6]} 18. a4
{[%clk 0:02:19.7]} 18... Rdg8 {[%clk 0:02:29.6]} 19. Rg1 {[%clk 0:02:18.6]}
19... Bg4 {[%clk 0:02:28.7]} 20. fxg4 {[%clk 0:01:38]} 20... hxg4 {[%clk
0:02:28]} 21. Qd1 {[%clk 0:01:36.4]} 21... g3 {[%clk 0:02:24.1]} 22. Rg2 {[%clk
0:01:35.7]} 22... Ng4 {[%clk 0:02:23.2]} 23. Be2 {[%clk 0:01:20.9]} 23... Nf2+
{[%clk 0:02:04.9]} 24. Rxf2 {[%clk 0:01:20.7]} 24... gxf2 {[%clk 0:02:05.8]} 25.
Bg4+ {[%clk 0:01:18.5]} 25... Kb8 {[%clk 0:02:02]} 26. Qf3 {[%clk 0:01:16.2]}
26... Qa6 {[%clk 0:01:58.9]} 27. Rf1 {[%clk 0:01:04.2]} 27... Qg6 {[%clk
0:01:53.6]} 28. Bxf4 {[%clk 0:00:39.7]} 28... exf4 {[%clk 0:01:50.9]} 29. Qxf4+
{[%clk 0:00:39.7]} 29... Ka8 {[%clk 0:01:51.5]} 30. Bh5 {[%clk 0:00:38.3]} 30...
Qg1+ {[%clk 0:01:50]} 0-1

[Event "Late-Titled-Tuesday-Blitz-September-05-2023"]
[Site "Chess.com"]
[Date "2023.09.05"]
[Round "4"]
[White "AsaHoffmann"]
[Black "rochaaaaaaaaaa"]
[Result "0-1"]
[WhiteElo "2358"]
[BlackElo "2272"]
[TimeControl "180+1"]
[EndTime "14:37:29 PDT"]
[Termination "rochaaaaaaaaaa won by checkmate"]

1. d4 {[%clk 0:02:58.2]} 1... d5 {[%clk 0:03:00.3]} 2. Bg5 {[%clk 0:02:56.2]}
2... f6 {[%clk 0:02:59.9]} 3. Bh4 {[%clk 0:02:53.7]} 3... Nh6 {[%clk 0:02:59.8]}
4. e3 {[%clk 0:02:51.6]} 4... Nf5 {[%clk 0:02:57]} 5. Bg3 {[%clk 0:02:48]} 5...
h5 {[%clk 0:02:57.2]} 6. Bd3 {[%clk 0:02:34.5]} 6... h4 {[%clk 0:02:50.2]} 7.
Bf4 {[%clk 0:02:27.1]} 7... g5 {[%clk 0:02:48.6]} 8. g4 {[%clk 0:02:22.7]} 8...
Nh6 {[%clk 0:02:33.3]} 9. Bg6+ {[%clk 0:02:16.2]} 9... Nf7 {[%clk 0:02:33.5]}
10. Ne2 {[%clk 0:02:11.9]} 10... gxf4 {[%clk 0:02:33.5]} 11. Nxf4 {[%clk
0:02:11.8]} 11... Bh6 {[%clk 0:02:29.3]} 12. h3 {[%clk 0:02:08.3]} 12... Bxf4
{[%clk 0:02:29]} 13. exf4 {[%clk 0:02:07.8]} 13... Kf8 {[%clk 0:02:23.9]} 14.
Nc3 {[%clk 0:02:06.5]} 14... c6 {[%clk 0:02:23.7]} 15. Qe2 {[%clk 0:02:05.7]}
15... b5 {[%clk 0:02:22.7]} 16. O-O-O {[%clk 0:02:04.9]} 16... b4 {[%clk
0:02:22.8]} 17. Na4 {[%clk 0:02:04.2]} 17... Nd6 {[%clk 0:02:18.5]} 18. Rde1
{[%clk 0:02:01.7]} 18... Nd7 {[%clk 0:02:10.1]} 19. f5 {[%clk 0:01:54.9]} 19...
Nb6 {[%clk 0:01:55.1]} 20. Nc5 {[%clk 0:01:53.8]} 20... a5 {[%clk 0:01:47.8]}
21. f3 {[%clk 0:01:53.2]} 21... a4 {[%clk 0:01:47.4]} 22. Rhg1 {[%clk
0:01:52.4]} 22... b3 {[%clk 0:01:47.2]} 23. cxb3 {[%clk 0:01:51.3]} 23... axb3
{[%clk 0:01:48.1]} 24. a3 {[%clk 0:01:51.2]} 24... Nbc4 {[%clk 0:01:33.1]} 25.
Qd3 {[%clk 0:01:47.4]} 25... Nb5 {[%clk 0:01:15.7]} 26. g5 {[%clk 0:01:42.1]}
26... Nbxa3 {[%clk 0:01:08.4]} 27. bxa3 {[%clk 0:01:39.2]} 27... Rxa3 {[%clk
0:01:00.4]} 28. Kb1 {[%clk 0:01:36.5]} 28... b2 {[%clk 0:00:57.7]} 29. Qxa3
{[%clk 0:01:29.9]} 29... Nxa3+ {[%clk 0:00:57.5]} 30. Kxb2 {[%clk 0:01:30]}
30... Nc4+ {[%clk 0:00:57.8]} 31. Kc3 {[%clk 0:01:29.7]} 31... Qa5+ {[%clk
0:00:56.7]} 32. Kd3 {[%clk 0:01:27.3]} 32... Qd2# {[%clk 0:00:53.8]} 0-1

[Event "Late-Titled-Tuesday-Blitz-September-05-2023"]
[Site "Chess.com"]
[Date "2023.09.05"]
[Round "4"]
[White "Matibar"]
[Black "Polish_fighter3000"]
[Result "1/2-1/2"]
[WhiteElo "2893"]
[BlackElo "3082"]
[TimeControl "180+1"]
[EndTime "14:37:40 PDT"]
[Termination "Game drawn by repetition"]

1. e4 {[%clk 0:03:00.9]} 1... g6 {[%clk 0:02:59.4]} 2. d4 {[%clk 0:03:00.2]}
2... Bg7 {[%clk 0:03:00.1]} 3. Nf3 {[%clk 0:03:00]} 3... b6 {[%clk 0:02:59.8]}
4. a4 {[%clk 0:02:52.8]} 4... Bb7 {[%clk 0:03:00]} 5. Bd3 {[%clk 0:02:51.9]}
5... a6 {[%clk 0:03:00.3]} 6. O-O {[%clk 0:02:50.4]} 6... d6 {[%clk 0:03:00.5]}
7. Re1 {[%clk 0:02:50.2]} 7... e6 {[%clk 0:02:59.8]} 8. Nbd2 {[%clk 0:02:50.1]}
8... Nd7 {[%clk 0:02:59.8]} 9. Nf1 {[%clk 0:02:50.6]} 9... Ne7 {[%clk
0:02:58.5]} 10. c3 {[%clk 0:02:50.2]} 10... O-O {[%clk 0:02:58]} 11. Ng3 {[%clk
0:02:50.9]} 11... h6 {[%clk 0:02:57.5]} 12. h4 {[%clk 0:02:48.6]} 12... c5
{[%clk 0:02:17.8]} 13. Bf4 {[%clk 0:02:26.5]} 13... e5 {[%clk 0:02:15.7]} 14.
dxe5 {[%clk 0:02:25.2]} 14... Nxe5 {[%clk 0:02:04.7]} 15. Nxe5 {[%clk
0:02:21.8]} 15... dxe5 {[%clk 0:02:05.6]} 16. Be3 {[%clk 0:02:22]} 16... Qc7
{[%clk 0:02:02.5]} 17. Qe2 {[%clk 0:02:20.1]} 17... h5 {[%clk 0:01:57.5]} 18.
Bc4 {[%clk 0:02:11.4]} 18... Bf6 {[%clk 0:01:33.8]} 19. Nxh5 {[%clk 0:02:02.8]}
19... gxh5 {[%clk 0:01:26.1]} 20. Qxh5 {[%clk 0:02:03.4]} 20... b5 {[%clk
0:01:13.6]} 21. Qg4+ {[%clk 0:01:36.5]} 21... Kh7 {[%clk 0:01:04.2]} 22. Qh5+
{[%clk 0:01:28.1]} 22... Kg8 {[%clk 0:00:55.7]} 23. Qg4+ {[%clk 0:01:00.1]}
23... Kh8 {[%clk 0:00:55.6]} 24. Qh5+ {[%clk 0:01:00.2]} 24... Kg8 {[%clk
0:00:54.6]} 1/2-1/2

[Event "Late-Titled-Tuesday-Blitz-September-05-2023"]
[Site "Chess.com"]
[Date "2023.09.05"]
[Round "4"]
[White "Garmendiarov"]
[Black "JG-17"]
[Result "0-1"]
[WhiteElo "2347"]
[BlackElo "2614"]
[TimeControl "180+1"]
[EndTime "14:37:46 PDT"]
[Termination "JG-17 won by resignation"]

1. e4 {[%clk 0:03:00.9]} 1... c5 {[%clk 0:03:00.2]} 2. Nf3 {[%clk 0:03:01.3]}
2... d6 {[%clk 0:03:00.6]} 3. d4 {[%clk 0:03:01.4]} 3... cxd4 {[%clk 0:03:01.5]}
4. Nxd4 {[%clk 0:03:02.2]} 4... Nf6 {[%clk 0:03:02.1]} 5. Nc3 {[%clk 0:03:02.9]}
5... g6 {[%clk 0:03:02.7]} 6. Be3 {[%clk 0:03:02.5]} 6... Nc6 {[%clk 0:03:03.3]}
7. f3 {[%clk 0:03:03.3]} 7... h5 {[%clk 0:03:03.5]} 8. Bb5 {[%clk 0:03:01.2]}
8... Bd7 {[%clk 0:02:59.8]} 9. Qd2 {[%clk 0:02:59.2]} 9... Nxd4 {[%clk
0:02:57.2]} 10. Bxd7+ {[%clk 0:02:55.6]} 10... Qxd7 {[%clk 0:02:57.5]} 11. Bxd4
{[%clk 0:02:53.3]} 11... Bh6 {[%clk 0:02:58]} 12. Be3 {[%clk 0:02:51.3]} 12...
Bxe3 {[%clk 0:02:54.5]} 13. Qxe3 {[%clk 0:02:52.2]} 13... b5 {[%clk 0:02:40.4]}
14. O-O {[%clk 0:02:44.8]} 14... O-O {[%clk 0:02:32.7]} 15. Rad1 {[%clk
0:02:41.7]} 15... Rac8 {[%clk 0:02:28]} 16. e5 {[%clk 0:02:37.9]} 16... Ne8
{[%clk 0:02:27.4]} 17. Nd5 {[%clk 0:02:31.2]} 17... Nc7 {[%clk 0:02:05.8]} 18.
Qh6 {[%clk 0:01:41.7]} 18... Nxd5 {[%clk 0:01:58.9]} 19. Rxd5 {[%clk 0:01:42.6]}
19... Qe6 {[%clk 0:01:51.5]} 20. Rxb5 {[%clk 0:01:32.5]} 20... Rxc2 {[%clk
0:01:49]} 21. f4 {[%clk 0:01:09.8]} 21... Qg4 {[%clk 0:01:33.2]} 22. Rf2 {[%clk
0:00:40.6]} 22... Qd1+ {[%clk 0:01:32.5]} 23. Rf1 {[%clk 0:00:40.7]} 23... Qe2
{[%clk 0:01:32.8]} 24. Qg5 {[%clk 0:00:36.1]} 24... Qxb5 {[%clk 0:01:32.2]} 25.
a4 {[%clk 0:00:29.3]} 25... Qc5+ {[%clk 0:01:30.5]} 26. Kh1 {[%clk 0:00:29.7]}
26... Rc1 {[%clk 0:01:30.5]} 0-1

[Event "Late-Titled-Tuesday-Blitz-September-05-2023"]
[Site "Chess.com"]
[Date "2023.09.05"]
[Round "4"]
[White "cande_francisco"]
[Black "pouya21"]
[Result "0-1"]
[WhiteElo "2559"]
[BlackElo "2802"]
[TimeControl "180+1"]
[EndTime "14:37:51 PDT"]
[Termination "pouya21 won by resignation"]

1. e4 {[%clk 0:03:00.9]} 1... c5 {[%clk 0:02:59.9]} 2. Nf3 {[%clk 0:03:01.1]}
2... d6 {[%clk 0:03:00]} 3. Bb5+ {[%clk 0:03:01.1]} 3... Nd7 {[%clk 0:02:59.5]}
4. d4 {[%clk 0:03:00.7]} 4... cxd4 {[%clk 0:02:59.6]} 5. Qxd4 {[%clk 0:03:01.6]}
5... a6 {[%clk 0:03:00.2]} 6. Bxd7+ {[%clk 0:03:01.6]} 6... Bxd7 {[%clk
0:02:59.5]} 7. c4 {[%clk 0:03:02.1]} 7... Nf6 {[%clk 0:02:58.9]} 8. Bg5 {[%clk
0:02:54.5]} 8... e6 {[%clk 0:02:59.1]} 9. Nc3 {[%clk 0:02:54.2]} 9... Be7 {[%clk
0:02:59.4]} 10. O-O {[%clk 0:02:54.2]} 10... Bc6 {[%clk 0:03:00]} 11. Qd3 {[%clk
0:02:52.6]} 11... O-O {[%clk 0:02:55.7]} 12. Nd4 {[%clk 0:02:50.5]} 12... Qa5
{[%clk 0:02:54.5]} 13. Bf4 {[%clk 0:02:37.1]} 13... Rac8 {[%clk 0:02:49.1]} 14.
Rfd1 {[%clk 0:02:22.7]} 14... Rfd8 {[%clk 0:02:38.2]} 15. Nb3 {[%clk 0:02:20.7]}
15... Qh5 {[%clk 0:02:36.1]} 16. Bg3 {[%clk 0:02:05.9]} 16... Qg6 {[%clk
0:02:29.7]} 17. Re1 {[%clk 0:01:57.6]} 17... d5 {[%clk 0:02:28.6]} 18. cxd5
{[%clk 0:01:49.8]} 18... Nxd5 {[%clk 0:02:26.7]} 19. Qf3 {[%clk 0:01:40.4]}
19... Nxc3 {[%clk 0:02:22.1]} 20. bxc3 {[%clk 0:01:40.4]} 20... f5 {[%clk
0:02:15.1]} 21. Nd4 {[%clk 0:01:30.6]} 21... Bxe4 {[%clk 0:02:14.5]} 22. Qf4
{[%clk 0:01:22.5]} 22... Rxc3 {[%clk 0:02:03.4]} 23. Qe5 {[%clk 0:01:20.5]}
23... Bf6 {[%clk 0:01:51.8]} 24. Qxe6+ {[%clk 0:01:18]} 24... Qf7 {[%clk
0:01:52.2]} 25. Be5 {[%clk 0:00:32.2]} 25... Rxd4 {[%clk 0:01:48.1]} 26. Qxf7+
{[%clk 0:00:30.6]} 26... Kxf7 {[%clk 0:01:49]} 27. Bxd4 {[%clk 0:00:31.3]} 27...
Bxd4 {[%clk 0:01:49.7]} 28. Rad1 {[%clk 0:00:31.6]} 28... Bf6 {[%clk 0:01:43.9]}
29. Rd7+ {[%clk 0:00:30.7]} 29... Kg6 {[%clk 0:01:44.5]} 30. f3 {[%clk
0:00:31.1]} 30... Bc6 {[%clk 0:01:44.2]} 31. Rc7 {[%clk 0:00:31.4]} 31... Rc2
{[%clk 0:01:43.5]} 32. Re6 {[%clk 0:00:28.5]} 32... Rxa2 {[%clk 0:01:41.3]} 33.
h4 {[%clk 0:00:28.8]} 33... h5 {[%clk 0:01:40.2]} 0-1

[Event "Late-Titled-Tuesday-Blitz-September-05-2023"]
[Site "Chess.com"]
[Date "2023.09.05"]
[Round "4"]
[White "olakenn"]
[Black "MajorCoast"]
[Result "1/2-1/2"]
[WhiteElo "1853"]
[BlackElo "2291"]
[TimeControl "180+1"]
[EndTime "14:37:51 PDT"]
[Termination "Game drawn by agreement"]

1. e4 {[%clk 0:00:32]} 1... c6 {[%clk 0:02:58.2]} 2. Nf3 {[%clk 0:00:31.6]} 2...
g6 {[%clk 0:02:58.4]} 3. d4 {[%clk 0:00:31.4]} 3... d5 {[%clk 0:02:58.8]} 4. e5
{[%clk 0:00:31.5]} 4... h5 {[%clk 0:02:58.5]} 5. Bg5 {[%clk 0:00:31]} 5... Bg4
{[%clk 0:02:57.9]} 6. Qd2 {[%clk 0:00:30.1]} 6... Bxf3 {[%clk 0:02:56.1]} 7.
gxf3 {[%clk 0:00:30]} 7... Qb6 {[%clk 0:02:56.4]} 8. b3 {[%clk 0:00:28.7]} 8...
e6 {[%clk 0:02:55.9]} 9. a3 {[%clk 0:00:26.2]} 9... Nh6 {[%clk 0:02:53.8]} 10.
Bh3 {[%clk 0:00:21.4]} 10... Nf5 {[%clk 0:02:52]} 11. Bxf5 {[%clk 0:00:20.6]}
11... gxf5 {[%clk 0:02:52.9]} 12. O-O {[%clk 0:00:20.2]} 12... c5 {[%clk
0:02:48.9]} 13. Bf6 {[%clk 0:00:19.5]} 13... Rg8+ {[%clk 0:02:47.5]} 14. Kh1
{[%clk 0:00:19.5]} 14... Nd7 {[%clk 0:02:43.8]} 15. dxc5 {[%clk 0:00:18.8]}
15... Bxc5 {[%clk 0:02:39.4]} 16. Nc3 {[%clk 0:00:17.7]} 16... Nxf6 {[%clk
0:02:36.7]} 17. exf6 {[%clk 0:00:17.1]} 17... O-O-O {[%clk 0:02:36]} 18. Na4
{[%clk 0:00:16]} 18... Qc7 {[%clk 0:02:34.5]} 19. Nxc5 {[%clk 0:00:15.4]} 19...
Qxc5 {[%clk 0:02:35.4]} 20. c4 {[%clk 0:00:14.7]} 20... dxc4 {[%clk 0:02:32.9]}
21. Qf4 {[%clk 0:00:12.5]} 21... c3 {[%clk 0:02:24.8]} 22. Rac1 {[%clk
0:00:11.8]} 22... Rd4 {[%clk 0:02:17.3]} 23. Qe3 {[%clk 0:00:08.1]} 23... Rd5
{[%clk 0:02:07.5]} 24. Rxc3 {[%clk 0:00:07.7]} 1/2-1/2

[Event "Late-Titled-Tuesday-Blitz-September-05-2023"]
[Site "Chess.com"]
[Date "2023.09.05"]
[Round "4"]
[White "Haykoooo0o"]
[Black "Dzidzik2203"]
[Result "0-1"]
[WhiteElo "2479"]
[BlackElo "2350"]
[TimeControl "180+1"]
[EndTime "14:38:02 PDT"]
[Termination "Dzidzik2203 won by resignation"]

1. d4 {[%clk 0:03:00.9]} 1... Nf6 {[%clk 0:02:59.9]} 2. Nf3 {[%clk 0:03:00.5]}
2... e6 {[%clk 0:03:00]} 3. e3 {[%clk 0:03:00.6]} 3... b6 {[%clk 0:03:00.1]} 4.
Bd3 {[%clk 0:03:01.5]} 4... Bb7 {[%clk 0:03:01]} 5. Nbd2 {[%clk 0:03:02]} 5...
c5 {[%clk 0:03:01.3]} 6. c3 {[%clk 0:03:02.3]} 6... d5 {[%clk 0:03:01.6]} 7. Ne5
{[%clk 0:03:02.3]} 7... Bd6 {[%clk 0:02:57.2]} 8. f4 {[%clk 0:03:02.4]} 8... O-O
{[%clk 0:02:57]} 9. Qf3 {[%clk 0:03:01.2]} 9... Nc6 {[%clk 0:02:56.7]} 10. O-O
{[%clk 0:03:00.9]} 10... Ne7 {[%clk 0:02:57]} 11. g4 {[%clk 0:03:00.6]} 11... g6
{[%clk 0:02:43.3]} 12. g5 {[%clk 0:02:54.9]} 12... Nh5 {[%clk 0:02:42.6]} 13.
Qg4 {[%clk 0:02:53.5]} 13... Nf5 {[%clk 0:02:41.1]} 14. Ndf3 {[%clk 0:02:49.6]}
14... f6 {[%clk 0:02:41.2]} 15. gxf6 {[%clk 0:02:49.2]} 15... Nxf6 {[%clk
0:02:41.1]} 16. Qh3 {[%clk 0:02:46.6]} 16... Ne4 {[%clk 0:02:41.3]} 17. Bd2
{[%clk 0:02:18.1]} 17... Bxe5 {[%clk 0:02:38.7]} 18. fxe5 {[%clk 0:02:13.2]}
18... Qe7 {[%clk 0:02:26.1]} 19. Rae1 {[%clk 0:02:04.8]} 19... Rf7 {[%clk
0:02:13.3]} 20. Bc1 {[%clk 0:02:03.4]} 20... Raf8 {[%clk 0:02:12.6]} 21. Qg2
{[%clk 0:02:02.4]} 21... Nh4 {[%clk 0:02:02.2]} 22. Nxh4 {[%clk 0:01:57.4]}
22... Qxh4 {[%clk 0:02:03.1]} 23. Bxe4 {[%clk 0:01:55.8]} 23... dxe4 {[%clk
0:02:01]} 24. Bd2 {[%clk 0:01:55.6]} 24... Ba6 {[%clk 0:01:59.8]} 25. Rxf7
{[%clk 0:01:53.3]} 25... Rxf7 {[%clk 0:02:00.7]} 26. Qg3 {[%clk 0:01:42.2]}
26... Qh5 {[%clk 0:01:58.7]} 27. b3 {[%clk 0:01:34.2]} 27... Rf3 {[%clk
0:01:56.5]} 28. Qg2 {[%clk 0:01:33.4]} 28... Bd3 {[%clk 0:01:56.7]} 29. c4
{[%clk 0:01:22.3]} 29... Rf5 {[%clk 0:01:45.7]} 30. Kh1 {[%clk 0:01:01.8]} 30...
Rg5 {[%clk 0:01:41.5]} 31. Qf2 {[%clk 0:01:00.9]} 31... Qf3+ {[%clk 0:01:41.4]}
32. Qxf3 {[%clk 0:00:55]} 32... exf3 {[%clk 0:01:42.3]} 33. e4 {[%clk
0:00:43.7]} 33... f2 {[%clk 0:01:41.6]} 34. Rd1 {[%clk 0:00:28.9]} 34... Rg1+
{[%clk 0:01:40.4]} 35. Rxg1 {[%clk 0:00:28.1]} 35... Bxe4+ {[%clk 0:01:41.3]}
0-1